fUST/lending_fUST_20260223
["ID","MTS","AMOUNT","RATE_DAILY","PERIOD"]
[406355121,1771787443372,-5814.47448285,0.00048863,4]
[406355122,1771787443386,-5529.82461975,0.00048863,4]
[406355123,1771787443396,-4953.92100212,0.00048873,2]
[406355124,1771787443407,-435.0,0.00048873,2]
[406355136,1771787445671,-5583.3045271,0.00048873,2]
[406355137,1771787445682,-802.98281401,0.00048873,2]
[406355138,1771787445693,-1805.92423623,0.00048873,2]
[406355139,1771787445706,-95048.97273689,0.00048873,2]
[406355140,1771787445727,-1702.76985646,0.00048873,2]
[406355141,1771787445833,-3255.21514506,0.00048873,2]
[406355142,1771787445845,-4003.17328358,0.00048873,2]
[406355144,1771787593383,150.0,8.682e-05,30]
[406355145,1771787593721,150.0,9.612e-05,30]
[406355146,1771787594063,150.0,0.00010542,30]
[406355147,1771787594429,150.0,0.00011472,30]
[406355148,1771787594774,168.81,0.00012402,30]
[406355149,1771787595123,202.58,0.00013332,30]
[406355150,1771787595468,236.34,0.00014263,30]
[406355151,1771787618865,150.0,8.483e-05,30]
[406355152,1771787619238,150.0,9.391e-05,30]
[406355153,1771787619596,150.0,0.000103,30]
[406355154,1771787619971,150.0,0.00011209,30]
[406355155,1771787620310,150.0,0.00012118,30]
[406355156,1771787620658,150.0,0.00013027,30]
[406355157,1771787621000,150.0,0.00013936,30]
[406355158,1771787621339,150.0,0.00014844,30]
[406355159,1771787629245,150.0,8.695e-05,30]
[406355160,1771787817098,150.0,8.508e-05,30]
[406355161,1771787817479,150.0,9.419e-05,30]
[406355162,1771787826735,500.0,0.00013273,2]
[406355163,1771787826798,798.96782818,0.00013821,2]
[406355164,1771787885786,500.0,0.00013273,2]
[406355165,1771787885844,1635.56859451,0.00014368,2]
[406355166,1771787885913,1000.0,0.00013821,2]
[406355167,1771787949671,500.0,0.00013273,2]
[406355168,1771787950432,133.26480344,0.00013699,2]
[406355169,1771787950457,366.73519656,0.00013699,2]
[406355170,1771787959745,150.0,8.128e-05,30]
[406355171,1771787960083,164.95,8.999e-05,30]
[406355172,1771787960430,247.42,9.87e-05,30]
[406355173,1771787960777,329.89,0.00010741,30]
[406355174,1771787961205,412.36,0.00011612,30]
[406355175,1771787961541,494.84,0.00012483,30]
[406355176,1771787961898,577.31,0.00013354,30]
[406355177,1771787972780,150.0,8.273e-05,30]
[406355178,1771787973125,150.0,9.159e-05,30]
[406355179,1771787973493,156.67,0.00010045,30]
[406355180,1771787973842,208.89,0.00010932,30]
[406355181,1771787974273,261.12,0.00011818,30]
[406355182,1771787974601,313.34,0.00012704,30]
[406355183,1771787974940,365.56,0.00013591,30]
[406355184,1771787985952,150.0,7.879e-05,30]
[406355185,1771787986309,150.0,8.723e-05,30]
[406355186,1771787986694,150.0,9.567e-05,30]
[406355187,1771787986998,150.0,0.00010411,30]
[406355188,1771787987355,158.94,0.00011255,30]
[406355189,1771787987709,190.73,0.00012099,30]
[406355190,1771787988056,222.52,0.00012943,30]
[406355191,1771787988469,254.31,0.00013788,30]
[406355192,1771787997689,150.0,7.802e-05,30]
[406355193,1771787998050,150.0,8.638e-05,30]
[406355194,1771787998430,150.0,9.474e-05,30]
[406355195,1771787998776,150.0,0.0001031,30]
[406355196,1771787999119,150.0,0.00011146,30]
[406355197,1771787999468,150.0,0.00011982,30]
[406355198,1771787999804,150.0,0.00012818,30]
[406355200,1771788243784,500.0,0.00013273,2]
[406355201,1771788243954,1000.0,0.00013821,2]
[406355205,1771788401453,786.23914413,0.00014,2]
[406355206,1771788416492,5000.0,0.00014,2]
[406355207,1771788432231,-341.75667783,0.00014225,2]
[406355208,1771788432251,-302.1201323,0.00014368,2]
[406355209,1771788484407,150.0,8.194e-05,30]
[406355210,1771788484828,150.0,9.072e-05,30]
[406355211,1771788485185,150.0,9.95e-05,30]
[406355213,1771788542556,500.0,0.00013273,2]
[406355214,1771788550126,-374.84103799,0.00014225,2]
[406355215,1771788550147,-609.22009432,0.00014368,2]
[406355216,1771788550167,-300.0,0.00014999,2]
[406355217,1771788550187,-70000.0,0.00015,7]
[406355218,1771788550206,-150.0,0.00016351,2]
[406355219,1771788550225,-420.0,0.00016416,2]
[406355220,1771788550244,-587.0,0.00017966,2]
[406355221,1771788550263,-255.03328535,0.00017999,2]
[406355222,1771788550283,-500.0,0.00017999,2]
[406355223,1771788550302,-516.12947213,0.00017999,2]
[406355224,1771788550322,-500.0,0.00017999,2]
[406355225,1771788550340,-560.55213672,0.00017999,2]
[406355226,1771788550361,-500.0,0.00017999,2]
[406355227,1771788550379,-500.0,0.00017999,2]
[406355228,1771788550398,-500.0,0.00017999,2]
[406355229,1771788550423,-500.0,0.00017999,2]
[406355230,1771788550442,-500.0,0.00017999,2]
[406355231,1771788550463,-500.0,0.00017999,2]
[406355232,1771788550483,-500.0,0.00017999,2]
[406355233,1771788550506,-500.0,0.00017999,2]
[406355234,1771788550526,-500.0,0.00017999,2]
[406355235,1771788550545,-500.0,0.00017999,2]
[406355236,1771788550564,-500.0,0.00017999,2]
[406355237,1771788550584,-500.0,0.00017999,2]
[406355238,1771788550604,-500.0,0.00017999,2]
[406355239,1771788550623,-500.0,0.00017999,2]
[406355240,1771788550644,-500.0,0.00017999,2]
[406355241,1771788550663,-500.0,0.00017999,2]
[406355242,1771788550684,-500.0,0.00017999,2]
[406355243,1771788550704,-500.0,0.00017999,2]
[406355244,1771788550729,-500.0,0.00017999,2]
[406355245,1771788550749,-500.0,0.00017999,2]
[406355246,1771788550769,-437.9962393,0.00017999,2]
[406355247,1771788550789,-500.0,0.00017999,2]
[406355248,1771788550809,-500.0,0.00017999,2]
[406355249,1771788550830,-500.0,0.00017999,2]
[406355250,1771788550851,-500.0,0.00017999,2]
[406355251,1771788550871,-500.0,0.00017999,2]
[406355252,1771788550891,-500.0,0.00017999,2]
[406355253,1771788550913,-500.0,0.00017999,2]
[406355254,1771788550933,-500.0,0.00017999,2]
[406355255,1771788550955,-643.54198504,0.00017999,2]
[406355256,1771788550975,-500.0,0.00017999,2]
[406355257,1771788550996,-500.0,0.00017999,2]
[406355258,1771788551018,-500.0,0.00017999,2]
[406355259,1771788551042,-500.0,0.00017999,2]
[406355260,1771788551063,-273.9126028,0.00017999,2]
[406355261,1771788551084,-500.0,0.00017999,2]
[406355262,1771788551188,-500.0,0.00017999,2]
[406355263,1771788551210,-500.0,0.00017999,2]
[406355264,1771788551231,-500.0,0.00017999,2]
[406355265,1771788551253,-500.0,0.00017999,2]
[406355266,1771788551276,-500.0,0.00017999,2]
[406355267,1771788551298,-500.0,0.00017999,2]
[406355268,1771788551321,-500.0,0.00017999,2]
[406355269,1771788551345,-500.0,0.00017999,2]
[406355270,1771788551367,-500.0,0.00017999,2]
[406355271,1771788551389,-500.0,0.00017999,2]
[406355272,1771788551408,-500.0,0.00017999,2]
[406355273,1771788551433,-500.0,0.00017999,2]
[406355274,1771788551456,-500.0,0.00017999,2]
[406355275,1771788551476,-500.0,0.00017999,2]
[406355276,1771788551498,-500.0,0.00017999,2]
[406355277,1771788551518,-500.0,0.00017999,2]
[406355278,1771788551539,-500.0,0.00017999,2]
[406355279,1771788551559,-500.0,0.00017999,2]
[406355280,1771788551580,-500.0,0.00017999,2]
[406355281,1771788551601,-500.0,0.00017999,2]
[406355282,1771788551621,-500.0,0.00017999,2]
[406355283,1771788551640,-500.0,0.00017999,2]
[406355284,1771788551661,-500.0,0.00017999,2]
[406355285,1771788551681,-500.0,0.00017999,2]
[406355286,1771788551701,-500.0,0.00017999,2]
[406355287,1771788551720,-500.0,0.00017999,2]
[406355288,1771788551740,-500.0,0.00017999,2]
[406355289,1771788551760,-267.67501331,0.00017999,2]
[406355290,1771788551779,-63639.08166855,0.00018,2]
[406355291,1771788558132,-4640.83908504,0.00016251,2]
[406355292,1771788558151,-10626.27724766,0.00018,2]
[406355293,1771788569161,-73201.91699538,0.00018,2]
[406355294,1771788569181,-177.0,0.00018351,2]
[406355295,1771788569199,-158.47,0.000188,2]
[406355296,1771788569217,-1847.5662577,0.00019512,2]
[406355297,1771788569236,-823.0,0.00019663,2]
[406355298,1771788569255,-152.66298842,0.0002,2]
[406355299,1771788569274,-203.36,0.000203,2]
[406355300,1771788569294,-1200.0,0.00020599,2]
[406355301,1771788569312,-166.39,0.000206,2]
[406355302,1771788569331,-50000.0,0.000206,2]
[406355303,1771788569350,-1152.0,0.0002152,2]
[406355304,1771788569367,-150.0,0.00021918,2]
[406355305,1771788569385,-300.0,0.00022365,2]
[406355306,1771788569403,-250.0,0.00022466,2]
[406355307,1771788569426,-593.0,0.00022523,2]
[406355308,1771788569444,-350.0,0.00023014,2]
[406355309,1771788569464,-1017.0,0.00023552,2]
[406355310,1771788569483,-445.14456692,0.00023562,2]
[406355311,1771788569502,-93721.47190642,0.0002399,2]
[406355312,1771788569521,-744.00654836,0.00024,7]
[406355313,1771788569540,-128727.67977676,0.00024556,2]
[406355314,1771788569558,-432.87800867,0.00024558,2]
[406355315,1771788569575,-150.0,0.00024658,2]
[406355316,1771788569597,-500.0,0.00024658,2]
[406355317,1771788569617,-500.0,0.00024658,2]
[406355318,1771788569637,-500.0,0.00024658,2]
[406355319,1771788569656,-500.0,0.00024658,2]
[406355320,1771788569677,-500.0,0.00024658,2]
[406355321,1771788569697,-500.0,0.00024658,2]
[406355322,1771788569718,-500.0,0.00024658,2]
[406355323,1771788569740,-500.0,0.00024658,2]
[406355324,1771788569761,-500.0,0.00024658,2]
[406355325,1771788569781,-500.0,0.00024658,2]
[406355326,1771788569800,-500.0,0.00024658,2]
[406355327,1771788569820,-500.0,0.00024658,2]
[406355328,1771788569839,-500.0,0.00024658,2]
[406355329,1771788569859,-500.0,0.00024658,2]
[406355330,1771788569878,-500.0,0.00024658,2]
[406355331,1771788569897,-500.0,0.00024658,2]
[406355332,1771788569916,-252.6998159,0.00024658,2]
[406355333,1771788569936,-500.0,0.00024658,2]
[406355334,1771788569956,-500.0,0.00024658,2]
[406355335,1771788569975,-500.0,0.00024658,2]
[406355336,1771788569994,-500.0,0.00024658,2]
[406355337,1771788570013,-41691.4812609,0.000249,2]
[406355338,1771788570031,-160.35717755,0.00025,2]
[406355339,1771788570050,-500.0,0.00025204,2]
[406355340,1771788570069,-500.0,0.00025204,2]
[406355341,1771788570088,-500.0,0.00025205,2]
[406355342,1771788570106,-500.0,0.00025205,2]
[406355343,1771788570125,-500.0,0.00025205,2]
[406355344,1771788570143,-250.0,0.00025205,2]
[406355345,1771788570162,-6948.58021015,0.00025501,2]
[406355346,1771788570181,-2449.75856048,0.000256,2]
[406355347,1771788570200,-350.0,0.00025753,2]
[406355348,1771788570217,-407.55588156,0.00026301,2]
[406355349,1771788570236,-500.0,0.00026631,7]
[406355350,1771788570255,-150.0,0.00027397,5]
[406355351,1771788570274,-250.0,0.00027945,5]
[406355352,1771788570296,-150.0,0.00028,5]
[406355353,1771788570315,-350.0,0.00028493,5]
[406355354,1771788570337,-250.0,0.00028548,5]
[406355355,1771788570357,-500.0,0.00028937,7]
[406355356,1771788570455,-500.0,0.00028973,7]
[406355357,1771788570478,-388.66113322,0.00029041,5]
[406355358,1771788570500,-350.0,0.00029096,5]
[406355359,1771788570521,-1472.86044654,0.00029542,2]
[406355360,1771788570541,-500.0,0.0002961,2]
[406355361,1771788570562,-511.333,0.00029611,2]
[406355362,1771788570580,-511.333,0.00029611,3]
[406355363,1771788570600,-511.333,0.00029611,5]
[406355364,1771788570620,-200.0,0.00029611,2]
[406355365,1771788570638,-306.26,0.00029611,2]
[406355366,1771788570658,-9024.7250547,0.00029611,2]
[406355367,1771788570676,-22521.56440828,0.0003,30]
[406355368,1771788570695,-432.87800864,0.00030394,2]
[406355369,1771788570714,-183.24,0.00030493,24]
[406355370,1771788570733,-500.0,0.00031584,7]
[406355371,1771788570752,-500.0,0.00032233,7]
[406355372,1771788570771,-151.0,0.00032877,31]
[406355373,1771788570790,-10906.72,0.000329,14]
[406355374,1771788570809,-200.0,0.00033612,36]
[406355375,1771788570833,-500.0,0.00035472,30]
[406355376,1771788570853,-432.87800864,0.00036229,2]
[406355377,1771788570873,-200.0,0.00036731,43]
[406355378,1771788570893,-427.48,0.00038,60]
[406355379,1771788570912,-500.0,0.00038273,30]
[406355380,1771788570932,-6948.58021015,0.0003999,3]
[406355381,1771788570950,-12500.0,0.0004,45]
[406355382,1771788570970,-500.0,0.0004045,30]
[406355383,1771788570989,-583.86880523,0.00040499,16]
[406355384,1771788571008,-500.0,0.00040499,2]
[406355385,1771788571027,-500.0,0.00040499,16]
[406355386,1771788571047,-500.0,0.00040499,10]
[406355387,1771788571066,-521.848783,0.00040499,16]
[406355388,1771788571086,-500.0,0.00040499,16]
[406355389,1771788571105,-500.0,0.00040499,16]
[406355390,1771788571124,-12500.0,0.000405,45]
[406355391,1771788571142,-198.909373,0.000405,120]
[406355392,1771788571161,-487.83017195,0.00040999,2]
[406355393,1771788571180,-158.63817929,0.00040999,10]
[406355394,1771788571199,-12500.0,0.00041,46]
[406355395,1771788571219,-1582.3,0.00041095,120]
[406355396,1771788571237,-12500.0,0.000415,46]
[406355397,1771788571256,-744.00654836,0.0004199,3]
[406355398,1771788571275,-6948.58021015,0.0004199,3]
[406355399,1771788571293,-500.0,0.00041998,16]
[406355400,1771788571312,-12500.0,0.00042,47]
[406355401,1771788571332,-432.87800864,0.00042065,2]
[406355402,1771788571352,-500.0,0.00042499,16]
[406355403,1771788571372,-9076.66538783,0.000425,47]
[406355404,1771788604343,168.74,6.5e-05,2]
[406355405,1771788604868,168.74,6.6e-05,2]
[406355406,1771788605338,168.74,6.6e-05,2]
[406355407,1771788605970,168.74,6.7e-05,2]
[406355408,1771788606537,168.74,6.8e-05,2]
[406355409,1771788607016,168.74,6.8e-05,2]
[406355410,1771788607572,168.74,6.9e-05,2]
[406355419,1771788631661,-250.0,0.00018796,2]
[406355420,1771788631671,-1960.4,0.0004,30]
[406355421,1771788631681,-389.6,0.00040499,16]
[406355422,1771788631693,-110.4,0.00040499,16]
[406355423,1771788631703,-500.0,0.00040999,16]
[406355424,1771788631714,-500.0,0.00041999,16]
[406355425,1771788631725,-550.0,0.00041999,5]
[406355426,1771788631735,-550.0,0.00041999,5]
[406355427,1771788631745,-539.6,0.00041999,5]
[406355428,1771788631758,-10.4,0.00041999,5]
[406355429,1771788631767,-667.68346952,0.00042,30]
[406355430,1771788631783,-1292.71653048,0.00042,30]
[406355431,1771788631793,-500.0,0.00042499,16]
[406355432,1771788631803,-17.34398879,0.000425,47]
[406355443,1771788637885,-645.76723584,0.000425,47]
[406355444,1771788637941,-2760.22338754,0.000425,47]
[406355445,1771788637951,-23529.68536216,0.000425,2]
[406355446,1771788637960,-12500.0,0.00043,47]
[406355447,1771788637970,-209.40437684,0.00043481,2]
[406355448,1771788637980,-217.15233878,0.00043481,2]
[406355449,1771788637990,-225.18697532,0.00043481,2]
[406355450,1771788637999,-233.51889341,0.00043481,2]
[406355451,1771788638009,-242.15909246,0.00043481,2]
[406355452,1771788638018,-251.11897888,0.00043481,2]
[406355453,1771788638027,-260.4103811,0.00043481,2]
[406355454,1771788638037,-270.0455652,0.00043481,2]
[406355455,1771788638046,-280.03725112,0.00043481,2]
[406355456,1771788638055,-290.39862941,0.00043481,2]
[406355457,1771788638064,-301.1433787,0.00043481,2]
[406355458,1771788638074,-4349.15146806,0.0004349,3]
[406355475,1771788643218,-2599.42874209,0.0004349,3]
[406355476,1771788643228,-2008.81414315,0.00043499,120]
[406355477,1771788643238,-500.0,0.00043499,16]
[406355478,1771788643247,-154.09567178,0.000435,48]
[406355482,1771788645824,-4893.21,0.000435,14]
[406355483,1771788645838,-162.437,0.0004354,68]
[406355484,1771788645852,-500.0,0.00043999,30]
[406355485,1771788645866,-1960.4,0.000441,30]
[406355486,1771788645878,-535.32,0.00044439,120]
[406355487,1771788645892,-275.40019635,0.00044499,30]
[406355488,1771788645902,-744.00654836,0.00044989,3]
[406355489,1771788645914,-6948.58021015,0.00044989,3]
[406355490,1771788645924,-535.32,0.00045656,120]
[406355491,1771788645937,-213.74,0.00045717,60]
[406355492,1771788645949,-351.0,0.00046,90]
[406355493,1771788645961,-1960.4,0.00046305,30]
[406355494,1771788645972,-679.48044253,0.00046472,60]
[406355495,1771788645985,-6948.58021015,0.0004649,4]
[406355496,1771788645997,-535.32,0.00046873,120]
[406355497,1771788646009,-561.00809892,0.00046932,7]
[406355498,1771788646022,-13897.1604203,0.0004698,4]
[406355499,1771788646034,-9713.8,0.00047,14]
[406355500,1771788646046,-198.88925763,0.00047291,2]
[406355501,1771788646057,-358.00066373,0.00047291,2]
[406355502,1771788646069,-636.4456244,0.00047291,2]
[406355503,1771788646080,-432.87800864,0.000479,2]
[406355504,1771788646091,-7290.3148976,0.00047917,2]
[406355505,1771788646103,-1131.2171072,0.00047917,2]
[406355507,1771788646117,-6948.58021015,0.0004799,4]
[406355508,1771788646129,-155.0,0.00048,90]
[406355509,1771788646140,-535.32,0.0004809,120]
[406355510,1771788646151,-13897.1604203,0.00048863,4]
[406355511,1771788646162,-83816.13149248,0.00048873,2]
[406355512,1771788646174,-151.0,0.00049,24]
[406355513,1771788646188,-200.0,0.00049205,120]
[406355514,1771788646200,-535.32,0.00049308,120]
[406355515,1771788646213,-154.2235893,0.00049384,2]
[406355516,1771788646226,-20845.7406305,0.00049398,4]
[406355517,1771788646237,-15931.17670737,0.00049407,2]
[406355518,1771788892144,150.0,9.442e-05,30]
[406355522,1771789326285,411.34022662,0.00013821,2]
[406355523,1771789326352,254.50543269,0.00013273,2]
[406355524,1771789377946,374.84103799,0.00013,2]
[406355525,1771789533136,-626.34733465,0.0001314,2]
[406355526,1771789533157,-245.49456731,0.00013273,2]
[406355527,1771789533176,-300.0,0.00019143,2]
[406355528,1771789533196,-150.0,0.00019144,2]
[406355529,1771789533215,-300.0,0.000201,2]
[406355530,1771789533234,-2007.58710351,0.00021432,2]
[406355531,1771789533254,-821.0,0.00025115,2]
[406355532,1771789533275,-300.0,0.00026206,2]
[406355533,1771789533294,-500.0,0.00026206,2]
[406355534,1771789533314,-560.55213672,0.00026206,2]
[406355535,1771789533336,-516.12947213,0.00026206,2]
[406355536,1771789533357,-500.0,0.00026206,2]
[406355537,1771789533378,-500.0,0.00026206,2]
[406355538,1771789533398,-500.0,0.00026206,2]
[406355539,1771789533418,-500.0,0.00026206,2]
[406355540,1771789533440,-500.0,0.00026206,2]
[406355541,1771789533461,-500.0,0.00026206,2]
[406355542,1771789533481,-500.0,0.00026206,2]
[406355543,1771789533502,-500.0,0.00026206,2]
[406355544,1771789533522,-500.0,0.00026206,2]
[406355545,1771789533543,-500.0,0.00026206,2]
[406355546,1771789533564,-427.39126028,0.00026206,2]
[406355547,1771789533584,-500.0,0.00026206,2]
[406355548,1771789533606,-500.0,0.00026206,2]
[406355549,1771789533628,-500.0,0.00026206,2]
[406355550,1771789533649,-500.0,0.00026206,2]
[406355551,1771789533668,-243.79962393,0.00026206,2]
[406355552,1771789533692,-22.51962334,0.00026206,2]
[406355553,1771789630126,-4991.94724724,0.00026105,2]
[406355554,1771789630146,-300.0,0.00026105,2]
[406355555,1771789630167,-193.75551377,0.00026205,2]
[406355556,1771789630195,-158.59902892,0.00026205,2]
[406355557,1771789630223,-500.0,0.00026205,2]
[406355558,1771789630246,-500.0,0.00026205,2]
[406355559,1771789630268,-500.0,0.00026205,2]
[406355560,1771789630290,-500.0,0.00026205,2]
[406355561,1771789630313,-556.19318461,0.00026205,2]
[406355562,1771789630335,-251.96389037,0.00026205,2]
[406355563,1771789630358,-167.59211388,0.00026205,2]
[406355564,1771789630379,-418.592381,0.00026589,2]
[406355565,1771789630404,-420.0,0.00028248,2]
[406355566,1771789630426,-875.7194608,0.00028341,2]
[406355567,1771789630448,-587.0,0.00030568,2]
[406355568,1771789630469,-1000.0,0.00031233,5]
[406355569,1771789630492,-318.89855321,0.00032328,2]
[406355570,1771789630513,-41287.0393682,0.00032329,2]
[406355571,1771789630534,-2003.65754469,0.00032329,5]
[406355572,1771789630555,-200.0,0.00034698,38]
[406355573,1771789630574,-219.15,0.00035624,2]
[406355574,1771789630595,-500.0,0.00036479,30]
[406355575,1771789630615,-182.58,0.00036595,2]
[406355576,1771789630635,-200.0,0.00037116,44]
[406355577,1771789630654,-500.0,0.00037995,30]
[406355578,1771789630676,-419.13,0.00038,60]
[406355579,1771789630699,-200.0,0.00039534,52]
[406355580,1771789630723,-418.592381,0.00039884,2]
[406355581,1771789630747,-12500.0,0.0004,45]
[406355582,1771789630773,-12500.0,0.000405,45]
[406355583,1771789630794,-1273.38178809,0.00041,46]
[406355584,1771789647081,-30085.95646979,0.000399,2]
[406355585,1771789647105,-980.2,0.0004,30]
[406355586,1771789647125,-453.05,0.0004,30]
[406355587,1771789647144,-11226.61821191,0.00041,46]
[406355588,1771789647164,-4868.05,0.000415,14]
[406355589,1771789647185,-12500.0,0.000415,46]
[406355590,1771789647205,-200.0,0.00041952,62]
[406355591,1771789647226,-12500.0,0.00042,47]
[406355592,1771789647248,-980.2,0.00042,30]
[406355593,1771789647269,-453.05,0.00042,30]
[406355594,1771789647291,-32.82404296,0.000425,47]
[406355611,1771789831918,-1680.89068278,0.000425,47]
[406355613,1771789831930,-274.43075317,0.000425,47]
[406355805,1771789840073,-9404.86582842,0.000425,47]
[406355819,1771789843167,-586.64428478,0.000435,14]
[406355820,1771789843178,-806.99127554,0.000435,14]
[406355821,1771789845987,-3610.58741774,0.000435,14]
[406355822,1771789846229,-1557.86901354,0.000435,14]
[406355823,1771789846887,-4267.7480084,0.000435,14]
[406355824,1771789846897,-223.22898725,0.00043999,120]
[406355825,1771789846910,-151.0,0.00045,120]
[406355826,1771789846919,-151.0,0.00045,120]
[406355827,1771789846928,-151.0,0.00045,120]
[406355828,1771789846938,-151.0,0.00045,120]
[406355829,1771789846947,-151.0,0.000455,120]
[406355830,1771789846957,-480.115782,0.000455,120]
[406355831,1771789846966,-480.115782,0.000455,120]
[406355832,1771789846975,-151.0,0.000455,30]
[406355833,1771789846985,-480.115782,0.000455,120]
[406355834,1771789846994,-480.115782,0.000455,120]
[406355835,1771789847004,-151.0,0.000455,28]
[406355836,1771789847013,-784.88751242,0.000455,14]
[406358125,1771790955267,-200.23603066,0.00023729,120]
[406358126,1771790971109,-74.02396934,0.00023729,120]
[406358127,1771790971134,-381.00001972,0.00027,15]
[406358142,1771791032064,-274.26,0.00038,60]
[406358179,1771791038380,-102.97,0.00038,60]
[406358181,1771791038390,-1120.5161742,0.00038814,2]
[406358183,1771791038399,-362.7665117,0.00038814,2]
[406358185,1771791038409,-1856.86616958,0.0004,45]
[406358188,1771791038433,-811.51114452,0.0004,45]
[406358412,1771791040714,-288.46561597,0.00040303,2]
[406358414,1771791040724,-193.8632531,0.00040634,2]
[406358416,1771791040734,-130.32855105,0.00041999,31]
[406358526,1771791043793,-25.93174003,0.00041999,31]
[406358527,1771791043803,-600.0,0.00042329,60]
[406358528,1771791043813,-1120.5161742,0.00043821,2]
[406358529,1771791043822,-362.7665117,0.00045037,2]
[406358530,1771791043836,-3246.1861023,0.000455,14]
[406358531,1771791043850,-350.16638528,0.000455,14]
[406358532,1771791043861,-188.62,0.00045717,60]
[406358533,1771791043871,-0.28686912,0.00046562,120]
[406358534,1771791043884,-719.71313088,0.00046562,120]
[406358535,1771791043895,-318.77384957,0.00046573,2]
[406358536,1771791043906,-438.96337169,0.00046575,120]
[406358542,1771791046389,-560.0,0.000414,28]
[406358543,1771791053490,205.02,0.00021856,2]
[406358544,1771791054108,998.16395208,0.00024953,2]
[406358545,1771791061910,492.62057381,0.00024953,2]
[406358546,1771791070104,150.0,9.135e-05,30]
[406358547,1771791070453,150.0,0.00010113,30]
[406358548,1771791070815,150.0,0.00011092,30]
[406358552,1771791632379,5000.0,0.00013,2]
[406358553,1771791640914,875.49937344,0.00013,2]
[406358554,1771791655998,3749.65958857,0.00013,2]
[406358556,1771792120533,398.74420467,0.0001,2]
[406358557,1771792150117,-550.39864691,0.00012741,2]
[406358558,1771792154650,-1395.92211441,0.00012741,2]
[406358559,1771792154672,-150.0,0.0001291,2]
[406358560,1771792154694,-607.0,0.00013159,2]
[406358561,1771792154716,-303.51159369,0.00013273,2]
[406358562,1771792154737,-205.16439475,0.00013273,2]
[406358563,1771792154757,-500.0,0.00013699,2]
[406358564,1771792154779,-152.78,0.000137,2]
[406358565,1771792154801,-1000.0,0.00014247,2]
[406358566,1771792154821,-500.0,0.00014795,2]
[406358567,1771792154841,-177.0,0.0001491,2]
[406358568,1771792154861,-68724.82939218,0.00015,7]
[406358569,1771792163180,-1275.17060782,0.00015,7]
[406358570,1771792163201,-275.38352252,0.0001515,20]
[406358571,1771792163233,-204.0,0.0001691,2]
[406358572,1771792163253,-183788.81489173,0.00018,2]
[406358573,1771792163273,-333.26949769,0.00018,2]
[406358574,1771792163294,-231.0,0.0001891,2]
[406358575,1771792163313,-211.7091256,0.0002,2]
[406358576,1771792163333,-1379.38616945,0.0002,3]
[406358577,1771792163354,-258.0,0.0002091,2]
[406358578,1771792163374,-150.0,0.00021918,2]
[406358579,1771792163393,-10651.56,0.00022,2]
[406358580,1771792163412,-250.0,0.00022466,2]
[406358581,1771792163432,-169.69702422,0.0002291,2]
[406358582,1771792163455,-350.0,0.00023014,2]
[406358583,1771792163475,-450.63597361,0.00023562,2]
[406358584,1771792163494,-3949.27463264,0.000256,2]
[406358585,1771792163516,-173.5055419,0.00025638,2]